[Event "55th Rubinstein Memorial-C 2019"]
[Site "Polanica-Zdroj"]
[Date "2019.08.17"]
[Round "1.18"]
[White "Kieca, Aleksandra"]
[Black "Sypien, Natan"]
[Result "0-1"]
[ECO "C67"]
[WhiteElo "1453"]
[BlackElo "1819"]
[Annotator "NA"]
[PlyCount "134"]
[EventDate "2019.08.17"]
[EventType "swiss"]
[EventCountry "POL"]
[SourceTitle "playchess.com"]
[Source "ChessBase"]
[SourceQuality "1"]
[TimeControl "40/5400+30:1800+30"]

1. e4 {[%emt 0:00:00]} e5 {[%emt 0:00:00]} 2. Nf3 {[%emt 0:00:04]} Nc6 {[%emt 0:00:00]} 3. Bb5 {[%emt 0:00:42]} Nf6 {[%emt 0:00:00]} 4. O-O {[%emt 0:00:20]} Nxe4 {[%emt 0:00:00]} 5. d4 {[%emt 0:04:34]} Nd6 {[%emt 0:00:00]} 6. Bxc6 {[%emt 0:00:10]} dxc6 {[%emt 0:00:00]} 7. dxe5 {[%emt 0:02:51]} Nf5 {[%emt 0:00:00]} 8. Qxd8+ {[%emt 0:03:48]} Kxd8 {[%emt 0:00:00]} 9. b3 {[%emt 0:03:49]} Ke8 {[%emt 0:00:33]} 10. Bb2 {[%emt 0:00:49]} Be7 {[%emt 0:02:38]} 11. Nbd2 {[%emt 0:02:07]} Be6 {[%emt 0:01:18]} 12. c4 {[%emt 0:05:21]} a5 {[%emt 0:02:07]} 13. Ne4 {[%emt 0:05:18]} h5 {[%emt 0:04:29]} 14. Neg5 {[%emt 0:04:43]} Nh4 {[%emt 0:14:27]} 15. Nxh4 {[%emt 0:04:46]} Bxg5 {[%emt 0:00:12]} 16. Nf3 {[%emt 0:00:05]} Be7 {[%emt 0:01:28]} 17. Nd4 {[%emt 0:01:46]} Bc5 {[%emt 0:02:47]} 18. Kh1 {[%emt 0:11:44]} Rd8 {[%emt 0:03:06]} 19. Rad1 {[%emt 0:00:18]} Ke7 {[%emt 0:01:31]} 20. Nxe6 {[%emt 0:03:53]} fxe6 {[%emt 0:06:29]} 21. f3 {[%emt 0:01:01]} Rhf8 {[%emt 0:03:36]} 22. Bc1 {[%emt 0:05:29]} Kf7 {[%emt 0:06:40]} 23. Bg5 {[%emt 0:00:37]} Be7 {[%emt 0:00:57]} 24. Be3 {[%emt 0:03:48]} Kg6 {[%emt 0:04:50]} 25. Kg1 {[%emt 0:07:43]} Kf5 {[%emt 0:00:36]} 26. f4 {[%emt 0:04:08]} Rxd1 {[%emt 0:08:37]} 27. Rxd1 {[%emt 0:00:00]} Rd8 {[%emt 0:00:01]} 28. Rxd8 {[%emt 0:00:52]} Bxd8 {[%emt 0:00:01]} 29. Kf2 {[%emt 0:00:18]} Ke4 {[%emt 0:00:01]} 30. Ke2 {[%emt 0:00:39]} Be7 {[%emt 0:01:14]} 31. Bd2 {[%emt 0:03:48]} b6 {[%emt 0:03:03]} 32. g3 {[%emt 0:02:07]} Bc5 {[%emt 0:03:54]} 33. Bc3 {[%emt 0:02:23]} h4 {[%emt 0:02:58]} 34. Be1 {[%emt 0:07:44]} h3 {[%emt 0:07:57]} 35. Bf2 {[%emt 0:05:40]} Bxf2 {[%emt 0:08:12]} 36. Kxf2 {[%emt 0:00:05]} b5 {[%emt 0:00:01]} 37. Ke2 {[%emt 0:02:30]} bxc4 {[%emt 0:02:36]} 38. bxc4 {[%emt 0:00:04]} c5 {[%emt 0:00:01]} 39. Kf2 {[%emt 0:00:47]} a4 {[%emt 0:00:31]} 40. Ke2 {[%emt 0:00:22]} a3 {[%emt 0:00:01]} 41. Kf2 {[%emt 0:30:22]} g6 {[%emt 0:37:27]} 42. Ke2 {[%emt 0:00:11]} Kd4 {[%emt 0:00:32]} 43. Kf3 {[%emt 0:00:25]} Kxc4 {[%emt 0:00:03]} 44. Ke4 {[%emt 0:00:29]} Kb4 {[%emt 0:00:07]} 45. g4 {[%emt 0:00:13]} c4 {[%emt 0:00:07]} 46. Kd4 {[%emt 0:01:29]} c5+ {[%emt 0:01:19]} 47. Ke3 {[%emt 0:00:09]} Kc3 {[%emt 0:01:55]} 48. f5 {[%emt 0:00:31]} gxf5 {[%emt 0:00:58]} 49. gxf5 {[%emt 0:00:05]} Kb2 {[%emt 0:00:07]} 50. fxe6 {[%emt 0:00:20]} c3 {[%emt 0:00:04]} 51. e7 {[%emt 0:00:09]} c2 {[%emt 0:00:02]} 52. e8=Q {[%emt 0:00:34]} c1=Q+ {[%emt 0:00:04]} 53. Ke4 {[%emt 0:00:20]} Qb1+ {[%emt 0:03:45]} 54. Kd5 {[%emt 0:00:16]} Qxa2+ {[%emt 0:00:19]} 55. Kxc5 {[%emt 0:00:07]} Qb3 {[%emt 0:00:07]} 56. e6 {[%emt 0:01:23]} Qc3+ {[%emt 0:00:58]} 57. Kd6 {[%emt 0:00:21]} Qd4+ {[%emt 0:01:39]} 58. Kc7 {[%emt 0:02:10]} Qa7+ {[%emt 0:00:25]} 59. Kd6 {[%emt 0:00:20]} Qd4+ {[%emt 0:00:09]} 60. Kc7 {[%emt 0:00:04]} Qe5+ {[%emt 0:00:25]} 61. Kc8 {[%emt 0:01:11]} a2 {[%emt 0:00:22]} 62. Qd7 {[%emt 0:01:30]} a1=Q {[%emt 0:00:41]} 63. Qb7+ {[%emt 0:00:41]} Kc2 {[%emt 0:00:40]} 64. e7 {[%emt 0:00:46]} Qac3+ {[%emt 0:00:52]} 65. Kd8 {[%emt 0:00:16]} Qcd4+ {[%emt 0:00:43]} 66. Ke8 {[%emt 0:00:28]} Qh8+ {[%emt 0:00:04]} 67. Kf7 {[%emt 0:00:19]} Qdf6# {[%emt 0:00:03]} 0-1

[Event "55th Rubinstein Memorial-C 2019"]
[Site "Polanica-Zdroj"]
[Date "2019.08.17"]
[Round "1.19"]
[White "Matuszczyk, Mateusz"]
[Black "Lukasik, Zuzanna"]
[Result "1-0"]
[ECO "B40"]
[WhiteElo "1808"]
[BlackElo "1444"]
[Annotator "NA"]
[PlyCount "79"]
[EventDate "2019.08.17"]
[EventType "swiss"]
[EventCountry "POL"]
[SourceTitle "playchess.com"]
[Source "ChessBase"]
[SourceQuality "1"]
[TimeControl "40/5400+30:1800+30"]

1. e4 {[%emt 0:00:00]} c5 {[%emt 0:00:00]} 2. Nf3 {[%emt 0:00:00]} e6 {[%emt 0:00:14]} 3. c4 {[%emt 0:00:56]} Nc6 {[%emt 0:00:36]} 4. Be2 {[%emt 0:01:30]} Nf6 {[%emt 0:01:48]} 5. Nc3 {[%emt 0:00:07]} Be7 {[%emt 0:01:48]} 6. d4 {[%emt 0:00:59]} cxd4 {[%emt 0:02:53]} 7. Nxd4 {[%emt 0:00:02]} a6 {[%emt 0:06:58]} 8. O-O {[%emt 0:01:03]} O-O {[%emt 0:02:22]} 9. Nc2 {[%emt 0:07:01]} d6 {[%emt 0:05:21]} 10. Bf4 {[%emt 0:05:07]} Ne8 {[%emt 0:06:54]} 11. Be3 {[%emt 0:10:50]} f5 {[%emt 0:08:56]} 12. Qd2 {[%emt 0:06:56]} Bf6 {[%emt 0:07:35]} 13. exf5 {[%emt 0:00:21]} exf5 {[%emt 0:03:30]} 14. Nd5 {[%emt 0:05:18]} Rb8 {[%emt 0:09:11]} 15. Bb6 {[%emt 0:01:29]} Qd7 {[%emt 0:02:45]} 16. Nce3 {[%emt 0:03:10]} Qf7 {[%emt 0:06:12]} 17. f4 {[%emt 0:06:12]} g6 {[%emt 0:06:35]} 18. Nxf6+ {[%emt 0:01:00]} Qxf6 {[%emt 0:01:05]} 19. Bf3 {[%emt 0:01:55]} Be6 {[%emt 0:02:21]} 20. Rad1 {[%emt 0:02:23]} Qg7 {[%emt 0:08:06]} 21. b3 {[%emt 0:05:31]} Rf7 {[%emt 0:02:08]} 22. Nd5 {[%emt 0:04:12]} Rd7 {[%emt 0:01:31]} 23. Rfe1 {[%emt 0:00:34]} Bf7 {[%emt 0:01:42]} 24. b4 {[%emt 0:01:11]} h6 {[%emt 0:03:20]} 25. b5 {[%emt 0:01:31]} axb5 {[%emt 0:00:09]} 26. cxb5 {[%emt 0:00:01]} Nd8 {[%emt 0:00:31]} 27. Bd4 {[%emt 0:02:21]} Qf8 {[%emt 0:01:26]} 28. Rxe8 {[%emt 0:01:08]} Bxe8 {[%emt 0:00:19]} 29. Nf6+ {[%emt 0:04:01]} Kf7 {[%emt 0:00:34]} 30. Bd5+ {[%emt 0:02:34]} Ne6 {[%emt 0:00:54]} 31. Nh7 {[%emt 0:05:01]} Qg8 {[%emt 0:02:29]} 32. Ba7 {[%emt 0:00:37]} Qxh7 {[%emt 0:01:34]} 33. Bxb8 {[%emt 0:01:36]} Ke7 {[%emt 0:01:25]} 34. Bxe6 {[%emt 0:03:44]} Kxe6 {[%emt 0:00:11]} 35. Bxd6 {[%emt 0:00:21]} Kf7 {[%emt 0:01:57]} 36. Qd5+ {[%emt 0:00:33]} Kg7 {[%emt 0:01:48]} 37. Qe5+ {[%emt 0:01:18]} Kf7 {[%emt 0:00:15]} 38. Re1 {[%emt 0:00:10]} Qg8 {[%emt 0:00:34]} 39. Bb4 {[%emt 0:02:13]} h5 {[%emt 0:00:24]} 40. Bc3 {[%emt 0:00:54]} 1-0

[Event "55th Rubinstein Memorial-C 2019"]
[Site "Polanica-Zdroj"]
[Date "2019.08.17"]
[Round "1.20"]
[White "Karalchuk, Alieksej"]
[Black "Borowski, Przemyslaw"]
[Result "1-0"]
[ECO "A48"]
[WhiteElo "1443"]
[BlackElo "1805"]
[Annotator "NA"]
[PlyCount "139"]
[EventDate "2019.08.17"]
[EventType "swiss"]
[EventCountry "POL"]
[SourceTitle "playchess.com"]
[Source "ChessBase"]
[SourceQuality "1"]
[TimeControl "40/5400+30:1800+30"]

1. d4 {[%emt 0:00:00]} Nf6 {[%emt 0:00:00]} 2. Bf4 {[%emt 0:00:00]} g6 {[%emt 0:00:38]} 3. Nf3 {[%emt 0:00:25]} Bg7 {[%emt 0:00:16]} 4. Nbd2 {[%emt 0:01:01]} d6 {[%emt 0:01:33]} 5. h3 {[%emt 0:00:08]} Nbd7 {[%emt 0:01:52]} 6. e3 {[%emt 0:00:44]} O-O {[%emt 0:01:13]} 7. Be2 {[%emt 0:01:45]} c5 {[%emt 0:04:25]} 8. c4 {[%emt 0:05:55]} Qb6 {[%emt 0:07:43]} 9. Rb1 {[%emt 0:01:24]} Nh5 {[%emt 0:10:00]} 10. Bh2 {[%emt 0:00:11]} cxd4 {[%emt 0:09:24]} 11. exd4 {[%emt 0:00:08]} e5 {[%emt 0:02:09]} 12. dxe5 {[%emt 0:04:59]} dxe5 {[%emt 0:00:23]} 13. O-O {[%emt 0:03:40]} f5 {[%emt 0:07:05]} 14. Nb3 {[%emt 0:03:36]} f4 {[%emt 0:13:15]} 15. Qd5+ {[%emt 0:04:38]} Kh8 {[%emt 0:00:23]} 16. Ng5 {[%emt 0:11:43]} Qf6 {[%emt 0:01:25]} 17. Ne4 {[%emt 0:02:56]} Qe7 {[%emt 0:02:17]} 18. Bxh5 {[%emt 0:06:32]} gxh5 {[%emt 0:00:50]} 19. Nbd2 {[%emt 0:00:48]} Nb6 {[%emt 0:03:04]} 20. Qd3 {[%emt 0:02:23]} Bf5 {[%emt 0:00:52]} 21. b3 {[%emt 0:02:00]} Rad8 {[%emt 0:00:46]} 22. Qe2 {[%emt 0:00:45]} Rd4 {[%emt 0:03:51]} 23. f3 {[%emt 0:11:38]} Rfd8 {[%emt 0:06:31]} 24. Rbc1 {[%emt 0:03:47]} Nd7 {[%emt 0:04:17]} 25. Kh1 {[%emt 0:04:48]} Nf6 {[%emt 0:02:52]} 26. Bg1 {[%emt 0:00:58]} Rxd2 {[%emt 0:08:09]} 27. Nxd2 {[%emt 0:00:52]} Bd3 {[%emt 0:00:16]} 28. Qf2 {[%emt 0:00:51]} Bxf1 {[%emt 0:00:43]} 29. Rxf1 {[%emt 0:00:08]} h4 {[%emt 0:02:23]} 30. Qe2 {[%emt 0:02:48]} Nh5 {[%emt 0:00:59]} 31. Bf2 {[%emt 0:02:17]} Ng3+ {[%emt 0:02:12]} 32. Bxg3 {[%emt 0:00:07]} hxg3 {[%emt 0:00:08]} 33. Ne4 {[%emt 0:00:57]} Qd7 {[%emt 0:00:39]} 34. Rc1 {[%emt 0:03:18]} Qd4 {[%emt 0:01:05]} 35. Qe1 {[%emt 0:01:17]} Bf8 {[%emt 0:00:56]} 36. Qg1 {[%emt 0:00:54]} Qb2 {[%emt 0:01:11]} 37. Ra1 {[%emt 0:00:05]} b6 {[%emt 0:00:28]} 38. Rd1 {[%emt 0:03:46]} Rd4 {[%emt 0:00:56]} 39. Ng5 {[%emt 0:01:38]} Rxd1 {[%emt 0:00:57]} 40. Qxd1 {[%emt 0:00:07]} Qd4 {[%emt 0:00:34]} 41. Qxd4 {[%emt 0:30:38]} exd4 {[%emt 0:30:06]} 42. Kg1 {[%emt 0:00:03]} Bc5 {[%emt 0:00:45]} 43. Kf1 {[%emt 0:00:23]} d3 {[%emt 0:00:14]} 44. Ke1 {[%emt 0:01:31]} Be3 {[%emt 0:00:37]} 45. Nf7+ {[%emt 0:00:25]} Kg7 {[%emt 0:00:11]} 46. Ne5 {[%emt 0:00:06]} d2+ {[%emt 0:00:23]} 47. Ke2 {[%emt 0:00:06]} Kf6 {[%emt 0:00:55]} 48. Nd3 {[%emt 0:04:07]} Ke6 {[%emt 0:00:19]} 49. b4 {[%emt 0:00:28]} Kd6 {[%emt 0:00:33]} 50. a3 {[%emt 0:01:01]} b5 {[%emt 0:00:47]} 51. c5+ {[%emt 0:01:17]} Kd5 {[%emt 0:00:17]} 52. Kd1 {[%emt 0:01:23]} a6 {[%emt 0:00:56]} 53. Kc2 {[%emt 0:00:40]} Kc6 {[%emt 0:00:48]} 54. Ne5+ {[%emt 0:01:41]} Kd5 {[%emt 0:00:12]} 55. Ng4 {[%emt 0:00:20]} Bd4 56. Kxd2 {[%emt 0:00:37]} Bb2 {[%emt 0:00:37]} 57. Kc2 {[%emt 0:00:15]} Bxa3 {[%emt 0:00:31]} 58. Kb3 {[%emt 0:02:03]} Bc1 {[%emt 0:00:14]} 59. Nf6+ {[%emt 0:00:19]} Ke6 {[%emt 0:00:31]} 60. Nxh7 {[%emt 0:00:57]} Be3 {[%emt 0:00:12]} 61. Kc3 {[%emt 0:00:42]} Kd5 {[%emt 0:00:34]} 62. h4 {[%emt 0:01:32]} a5 {[%emt 0:01:11]} 63. bxa5 {[%emt 0:00:58]} Kxc5 {[%emt 0:00:15]} 64. h5 {[%emt 0:00:12]} Bd4+ {[%emt 0:00:44]} 65. Kb3 {[%emt 0:00:25]} Bg7 {[%emt 0:01:00]} 66. Ng5 {[%emt 0:00:18]} Kd5 {[%emt 0:00:39]} 67. Kb4 {[%emt 0:00:32]} Kc6 {[%emt 0:00:41]} 68. Nf7 {[%emt 0:00:08]} Bf8+ {[%emt 0:00:22]} 69. Kb3 {[%emt 0:00:16]} Kd7 {[%emt 0:00:31]} 70. h6 {[%emt 0:00:17]} 1-0

[Event "55th Rubinstein Memorial-C 2019"]
[Site "Polanica-Zdroj"]
[Date "2019.08.17"]
[Round "1.21"]
[White "Janzer, Hubert"]
[Black "Strugacz, Michal"]
[Result "1/2-1/2"]
[ECO "D00"]
[WhiteElo "1803"]
[BlackElo "1443"]
[Annotator "NA"]
[PlyCount "102"]
[EventDate "2019.08.17"]
[EventType "swiss"]
[EventCountry "POL"]
[SourceTitle "playchess.com"]
[Source "ChessBase"]
[SourceQuality "1"]
[TimeControl "40/5400+30:1800+30"]

1. d4 {[%emt 0:00:00]} d5 {[%emt 0:00:00]} 2. Bf4 {[%emt 0:00:00]} Nf6 {[%emt 0:00:19]} 3. e3 {[%emt 0:00:15]} Bf5 {[%emt 0:07:05]} 4. Nd2 {[%emt 0:00:42]} e6 {[%emt 0:01:04]} 5. Ngf3 {[%emt 0:00:42]} Bd6 {[%emt 0:02:42]} 6. Bg3 {[%emt 0:01:47]} O-O {[%emt 0:03:38]} 7. Ne5 {[%emt 0:02:55]} Nbd7 {[%emt 0:07:07]} 8. Be2 {[%emt 0:02:33]} Qe7 {[%emt 0:05:35]} 9. c3 {[%emt 0:01:09]} c5 {[%emt 0:03:04]} 10. O-O {[%emt 0:10:23]} Ne4 {[%emt 0:04:24]} 11. Nxe4 {[%emt 0:01:31]} Bxe4 {[%emt 0:00:19]} 12. Nxd7 {[%emt 0:06:39]} Qxd7 {[%emt 0:00:13]} 13. f3 {[%emt 0:00:45]} Bg6 {[%emt 0:01:41]} 14. Bf2 {[%emt 0:01:09]} c4 {[%emt 0:04:10]} 15. Re1 {[%emt 0:02:35]} b5 {[%emt 0:01:17]} 16. Bf1 {[%emt 0:01:20]} f5 {[%emt 0:08:14]} 17. b4 {[%emt 0:10:34]} a5 {[%emt 0:05:14]} 18. a3 {[%emt 0:10:12]} Ra6 {[%emt 0:03:48]} 19. Qd2 {[%emt 0:10:29]} Rfa8 {[%emt 0:03:04]} 20. Rab1 {[%emt 0:00:55]} axb4 {[%emt 0:02:00]} 21. axb4 {[%emt 0:00:08]} Ra2 {[%emt 0:05:49]} 22. Rb2 {[%emt 0:01:27]} Rxb2 {[%emt 0:00:36]} 23. Qxb2 {[%emt 0:00:07]} Ra4 {[%emt 0:00:50]} 24. Ra1 {[%emt 0:02:06]} Qa7 {[%emt 0:00:06]} 25. Rxa4 {[%emt 0:00:40]} Qxa4 {[%emt 0:00:08]} 26. Qc1 {[%emt 0:01:08]} Bf7 {[%emt 0:07:50]} 27. Be2 {[%emt 0:02:16]} e5 {[%emt 0:03:19]} 28. dxe5 {[%emt 0:07:47]} Bxe5 {[%emt 0:00:06]} 29. f4 {[%emt 0:00:19]} Bf6 {[%emt 0:01:21]} 30. Bf3 {[%emt 0:00:23]} Kf8 {[%emt 0:04:28]} 31. Qd2 {[%emt 0:01:02]} Qa1+ {[%emt 0:01:09]} 32. Be1 {[%emt 0:02:06]} Qa8 {[%emt 0:00:37]} 33. h3 {[%emt 0:00:53]} Ke7 {[%emt 0:01:34]} 34. g4 {[%emt 0:00:29]} g6 {[%emt 0:00:09]} 35. Bg2 {[%emt 0:04:35]} h5 {[%emt 0:04:29]} 36. gxf5 {[%emt 0:02:00]} gxf5 {[%emt 0:00:14]} 37. h4 {[%emt 0:02:47]} Qa1 {[%emt 0:04:10]} 38. Kh2 {[%emt 0:00:06]} Qa8 {[%emt 0:02:13]} 39. Bf3 {[%emt 0:00:51]} Qa1 {[%emt 0:02:01]} 40. Kg2 {[%emt 0:01:37]} Qa8 {[%emt 0:00:35]} 41. Qc2 {[%emt 0:31:10]} Ke6 {[%emt 0:30:39]} 42. Qd1 {[%emt 0:01:39]} Qd8 {[%emt 0:02:58]} 43. Kh3 {[%emt 0:00:23]} Kd6 {[%emt 0:00:39]} 44. Bxh5 {[%emt 0:00:28]} Bxh5 {[%emt 0:00:28]} 45. Qxh5 {[%emt 0:00:07]} Ke6 {[%emt 0:00:13]} 46. Qg6 {[%emt 0:00:27]} Qf8 {[%emt 0:00:47]} 47. h5 {[%emt 0:01:42]} Qf7 {[%emt 0:00:21]} 48. Qh6 {[%emt 0:03:59]} Qg7 {[%emt 0:00:32]} 49. Qxg7 {[%emt 0:00:10]} Bxg7 {[%emt 0:00:01]} 50. h6 {[%emt 0:00:23]} Bxh6 {[%emt 0:00:22]} 51. Kh4 Bg7 1/2-1/2

[Event "55th Rubinstein Memorial-C 2019"]
[Site "Polanica-Zdroj"]
[Date "2019.08.17"]
[Round "1.22"]
[White "Kosior, Jan"]
[Black "Karnasiewicz, Robert"]
[Result "0-1"]
[ECO "B35"]
[WhiteElo "1442"]
[BlackElo "1803"]
[Annotator "NA"]
[PlyCount "114"]
[EventDate "2019.08.17"]
[EventType "swiss"]
[EventCountry "POL"]
[SourceTitle "playchess.com"]
[Source "ChessBase"]
[SourceQuality "1"]
[TimeControl "40/5400+30:1800+30"]

1. e4 {[%emt 0:00:00]} c5 {[%emt 0:00:00]} 2. Nf3 {[%emt 0:00:00]} Nc6 {[%emt 0:00:00]} 3. d4 {[%emt 0:00:00]} cxd4 {[%emt 0:00:00]} 4. Nxd4 {[%emt 0:00:00]} g6 {[%emt 0:00:00]} 5. Nc3 {[%emt 0:00:00]} Bg7 {[%emt 0:00:28]} 6. Be3 {[%emt 0:00:00]} Nf6 {[%emt 0:00:27]} 7. Bc4 {[%emt 0:00:00]} Qa5 {[%emt 0:03:54]} 8. O-O {[%emt 0:12:54]} O-O {[%emt 0:00:08]} 9. Nb3 {[%emt 0:02:23]} Qc7 {[%emt 0:06:38]} 10. Bd3 {[%emt 0:03:27]} d6 {[%emt 0:07:27]} 11. Qd2 {[%emt 0:00:54]} Ng4 {[%emt 0:11:58]} 12. Bf4 {[%emt 0:04:48]} Be6 {[%emt 0:18:44]} 13. f3 {[%emt 0:00:49]} Nge5 {[%emt 0:02:59]} 14. Bh6 {[%emt 0:00:10]} Bxh6 {[%emt 0:02:05]} 15. Qxh6 {[%emt 0:00:09]} Qb6+ {[%emt 0:00:23]} 16. Kh1 {[%emt 0:00:57]} Nxd3 {[%emt 0:01:13]} 17. cxd3 {[%emt 0:00:02]} Bxb3 {[%emt 0:00:10]} 18. axb3 {[%emt 0:00:08]} Qxb3 {[%emt 0:00:14]} 19. Rab1 {[%emt 0:00:48]} Nb4 {[%emt 0:06:39]} 20. f4 {[%emt 0:00:57]} f5 {[%emt 0:02:45]} 21. exf5 {[%emt 0:00:16]} Rxf5 {[%emt 0:00:42]} 22. Qh3 {[%emt 0:04:41]} Raf8 {[%emt 0:01:08]} 23. d4 {[%emt 0:04:49]} e5 {[%emt 0:02:49]} 24. dxe5 {[%emt 0:00:43]} dxe5 {[%emt 0:00:19]} 25. Qe3 {[%emt 0:03:45]} b6 {[%emt 0:03:04]} 26. g3 {[%emt 0:05:00]} Nd5 {[%emt 0:03:19]} 27. Qd3 {[%emt 0:00:37]} Nxc3 {[%emt 0:01:51]} 28. bxc3 {[%emt 0:00:05]} Qf7 {[%emt 0:00:19]} 29. Ra1 {[%emt 0:02:50]} exf4 {[%emt 0:00:17]} 30. Rxf4 {[%emt 0:00:22]} Rxf4 {[%emt 0:01:17]} 31. gxf4 {[%emt 0:00:09]} Qb7+ {[%emt 0:00:51]} 32. Kg1 {[%emt 0:00:06]} Rxf4 {[%emt 0:00:26]} 33. Qg3 {[%emt 0:02:00]} Qf3 {[%emt 0:04:33]} 34. Qxf3 {[%emt 0:00:18]} Rxf3 {[%emt 0:00:02]} 35. Rxa7 {[%emt 0:01:05]} Rxc3 {[%emt 0:00:05]} 36. Rb7 {[%emt 0:00:03]} Rb3 {[%emt 0:00:05]} 37. Kg2 {[%emt 0:00:08]} Rb2+ {[%emt 0:00:39]} 38. Kg3 {[%emt 0:00:10]} b5 {[%emt 0:00:03]} 39. h3 {[%emt 0:00:05]} b4 {[%emt 0:00:07]} 40. Kh4 {[%emt 0:00:12]} b3 {[%emt 0:00:50]} 41. Kg5 {[%emt 0:31:04]} Rb1 {[%emt 0:30:20]} 42. Kf6 {[%emt 0:00:33]} Rf1+ {[%emt 0:00:38]} 43. Kg5 {[%emt 0:01:48]} Rf3 {[%emt 0:00:39]} 44. Kg4 {[%emt 0:00:04]} Rc3 {[%emt 0:00:12]} 45. Kh4 {[%emt 0:03:48]} Kf8 {[%emt 0:00:12]} 46. Kg4 {[%emt 0:01:39]} h6 {[%emt 0:00:39]} 47. h4 {[%emt 0:01:03]} Ke8 {[%emt 0:00:55]} 48. Kf4 {[%emt 0:00:48]} Kd8 {[%emt 0:00:18]} 49. Rb6 {[%emt 0:00:40]} g5+ {[%emt 0:01:24]} 50. hxg5 {[%emt 0:00:12]} hxg5+ {[%emt 0:00:01]} 51. Kxg5 {[%emt 0:00:35]} Kc7 {[%emt 0:00:04]} 52. Rb4 {[%emt 0:00:13]} Kc6 {[%emt 0:00:09]} 53. Kf5 {[%emt 0:02:04]} Kc5 {[%emt 0:00:42]} 54. Rb8 {[%emt 0:00:34]} Kd4 {[%emt 0:00:28]} 55. Rb4+ {[%emt 0:01:25]} Kd3 {[%emt 0:00:10]} 56. Ke5 {[%emt 0:00:10]} Kc2 {[%emt 0:00:26]} 57. Kd4 {[%emt 0:00:20]} Rc8 {[%emt 0:00:08]} 0-1

[Event "55th Rubinstein Memorial-C 2019"]
[Site "Polanica-Zdroj"]
[Date "2019.08.17"]
[Round "1.23"]
[White "Kroliczek, Gabriela"]
[Black "Maslanka, Andrzej"]
[Result "1-0"]
[ECO "C50"]
[WhiteElo "1787"]
[BlackElo "1440"]
[Annotator "NA"]
[PlyCount "95"]
[EventDate "2019.08.17"]
[EventType "swiss"]
[EventCountry "POL"]
[SourceTitle "playchess.com"]
[Source "ChessBase"]
[SourceQuality "1"]
[TimeControl "40/5400+30:1800+30"]

1. e4 e5 2. Nf3 Nc6 3. Bc4 Bc5 4. O-O d6 5. h3 Nf6 6. Re1 O-O 7. c3 Be6 8. Bxe6 fxe6 9. d4 exd4 10. cxd4 Bb6 11. Nc3 e5 12. Be3 exd4 13. Nxd4 Nxd4 14. Bxd4 Qd7 15. Rc1 Rae8 16. f3 Nh5 17. Bxb6 axb6 18. Nd5 Rc8 19. Qb3 Kh8 20. e5 dxe5 21. Rxe5 Nf4 22. Rce1 Nxd5 23. Rxd5 Qf7 24. Qd3 c6 25. Rd7 Qxa2 26. Qd4 Rg8 27. Qxb6 Qa6 28. Qxb7 Qxb7 29. Rxb7 Rge8 30. Rxe8+ Rxe8 31. Rc7 h6 32. Rxc6 Re2 33. b4 Rb2 34. Rc4 Kh7 35. Kh2 Kg6 36. h4 Kf5 37. Re4 Kf6 38. Kh3 Rb3 39. Kg4 Kg6 40. h5+ Kh7 41. Kf5 Rb2 42. g4 Rb3 43. f4 Rd3 44. b5 Rd6 45. Rb4 Rb6 46. Ke5 g6 47. hxg6+ Rxg6 48. b6 1-0

[Event "55th Rubinstein Memorial-C 2019"]
[Site "Polanica-Zdroj"]
[Date "2019.08.17"]
[Round "1.24"]
[White "Werner, Kacper"]
[Black "Burdzicki, Stanislaw"]
[Result "0-1"]
[ECO "B44"]
[WhiteElo "1435"]
[BlackElo "1785"]
[Annotator "NA"]
[PlyCount "130"]
[EventDate "2019.08.17"]
[EventType "swiss"]
[EventCountry "POL"]
[SourceTitle "playchess.com"]
[Source "ChessBase"]
[SourceQuality "1"]
[TimeControl "40/5400+30:1800+30"]

1. e4 c5 2. Nf3 e6 3. d4 cxd4 4. Nxd4 Nc6 5. Be3 {[%emt 0:02:03]} Nf6 {[%emt 0:05:51]} 6. Bd3 {[%emt 0:04:37]} Qc7 {[%emt 0:02:41]} 7. O-O {[%emt 0:01:19]} Ne5 {[%emt 0:05:26]} 8. Nc3 {[%emt 0:16:03]} Neg4 {[%emt 0:03:43]} 9. Nf3 {[%emt 0:03:13]} Nxe3 {[%emt 0:02:19]} 10. fxe3 {[%emt 0:00:07]} Bc5 {[%emt 0:23:25]} 11. Qc1 {[%emt 0:03:36]} a6 {[%emt 0:03:03]} 12. Qd2 {[%emt 0:14:15]} b5 {[%emt 0:04:22]} 13. h3 {[%emt 0:11:04]} d6 {[%emt 0:03:39]} 14. Qf2 {[%emt 0:10:26]} Bb7 {[%emt 0:05:45]} 15. Nd2 {[%emt 0:01:26]} Bb4 {[%emt 0:03:27]} 16. Ncb1 {[%emt 0:04:05]} Bc5 {[%emt 0:08:45]} 17. Nc3 {[%emt 0:01:05]} Bc6 {[%emt 0:01:11]} 18. Ne2 {[%emt 0:01:49]} Qb7 {[%emt 0:10:16]} 19. Ng3 {[%emt 0:03:34]} Qa7 {[%emt 0:01:41]} 20. Rae1 {[%emt 0:00:16]} h5 {[%emt 0:01:04]} 21. Qf3 {[%emt 0:08:42]} Rh6 {[%emt 0:03:15]} 22. Qe2 {[%emt 0:06:42]} g5 {[%emt 0:04:22]} 23. Nh1 {[%emt 0:04:39]} Qe7 {[%emt 0:05:22]} 24. Nb3 Bb6 25. Nf2 {[%emt 0:02:26]} e5 {[%emt 0:01:26]} 26. Nd2 {[%emt 0:00:31]} Bd7 {[%emt 0:00:38]} 27. Kh2 {[%emt 0:00:32]} Rb8 {[%emt 0:01:11]} 28. Nh1 {[%emt 0:00:40]} h4 {[%emt 0:00:14]} 29. Nf2 {[%emt 0:00:22]} Kd8 {[%emt 0:00:31]} 30. Ng4 {[%emt 0:00:43]} Bxg4 {[%emt 0:00:47]} 31. hxg4 {[%emt 0:00:01]} Qe6 {[%emt 0:00:28]} 32. Rf5 {[%emt 0:00:22]} Bxe3 {[%emt 0:00:25]} 33. Rxf6 {[%emt 0:00:38]} Rxf6 {[%emt 0:00:13]} 34. Qxe3 {[%emt 0:00:20]} Qxg4 {[%emt 0:00:09]} 35. Be2 {[%emt 0:01:10]} Qf4+ {[%emt 0:00:55]} 36. Qxf4 {[%emt 0:00:07]} Rxf4 {[%emt 0:00:23]} 37. Kh3 {[%emt 0:00:16]} Ke7 {[%emt 0:00:39]} 38. Bg4 {[%emt 0:00:58]} Rd8 {[%emt 0:00:44]} 39. Nf3 {[%emt 0:00:29]} f6 {[%emt 0:00:21]} 40. c3 d5 {[%emt 0:00:32]} 41. exd5 {[%emt 0:31:01]} Rxd5 {[%emt 0:30:06]} 42. Bc8 {[%emt 0:00:23]} Rd8 {[%emt 0:00:51]} 43. Bg4 {[%emt 0:00:22]} Rd3 {[%emt 0:00:14]} 44. Bc8 {[%emt 0:00:40]} Rd8 {[%emt 0:00:30]} 45. Bg4 {[%emt 0:00:27]} a5 {[%emt 0:00:24]} 46. Bh5 {[%emt 0:00:49]} Rd5 {[%emt 0:00:55]} 47. Kh2 {[%emt 0:00:17]} e4 {[%emt 0:00:38]} 48. Nd4 {[%emt 0:00:49]} f5 {[%emt 0:00:37]} 49. Re2 {[%emt 0:00:23]} Kf6 {[%emt 0:00:12]} 50. Be8 {[%emt 0:00:35]} b4 {[%emt 0:00:26]} 51. Nc6 {[%emt 0:00:34]} bxc3 {[%emt 0:00:30]} 52. bxc3 {[%emt 0:00:16]} Rc5 {[%emt 0:00:14]} 53. Rc2 {[%emt 0:00:41]} Rf1 {[%emt 0:01:02]} 54. Nd4 {[%emt 0:00:08]} Rd1 {[%emt 0:00:23]} 55. Nb3 {[%emt 0:00:46]} Rc8 {[%emt 0:00:26]} 56. Bb5 {[%emt 0:00:16]} g4 {[%emt 0:00:31]} 57. g3 {[%emt 0:00:50]} hxg3+ {[%emt 0:00:15]} 58. Kxg3 {[%emt 0:00:04]} Kg5 {[%emt 0:00:39]} 59. c4 {[%emt 0:00:44]} f4+ {[%emt 0:00:22]} 60. Kf2 {[%emt 0:00:08]} Rh8 {[%emt 0:00:25]} 61. Ke2 {[%emt 0:00:36]} Rg1 {[%emt 0:00:44]} 62. Kd2 {[%emt 0:00:38]} Rg2+ {[%emt 0:00:28]} 63. Kc3 {[%emt 0:00:32]} Rxc2+ {[%emt 0:00:12]} 64. Kxc2 {[%emt 0:00:05]} g3 {[%emt 0:00:21]} 65. Nd4 {[%emt 0:01:05]} g2 0-1